bitfinex/quotes_BTCUSD_20250618
["timestamp","ask_amount","ask_price","bid_price","bid_amount"]
[1750205351060,0.54741039,104750.0,104740.0,0.17427671]
[1750205351278,0.54741039,104750.0,104740.0,0.14307671]
[1750205351738,0.5474103,104750.0,104740.0,0.17517671]
[1750205351969,0.34,104750.0,104740.0,0.16561671]
[1750205352255,0.34,104750.0,104740.0,0.37566043]
[1750205352256,0.49972,104750.0,104740.0,0.37566043]
[1750205352493,0.49972,104750.0,104740.0,0.42033683]
[1750205352735,0.50926571,104750.0,104740.0,0.21029302]
[1750205353182,0.51881161,104750.0,104740.0,0.21029302]
[1750205353892,0.5283576,104750.0,104740.0,0.21029302]
[1750205354354,0.50926571,104750.0,104740.0,0.21029302]
[1750205354561,0.51881152,104750.0,104740.0,0.21029302]
[1750205355251,0.52835751,104750.0,104740.0,0.21029302]
[1750205355603,0.51881152,104750.0,104740.0,0.21029302]
[1750205355811,0.52835751,104750.0,104740.0,0.21029302]
[1750205356032,0.52835751,104750.0,104740.0,0.16561671]
[1750205356686,0.53790359,104750.0,104740.0,0.16561671]
[1750205356894,0.35909152,104750.0,104740.0,0.16561671]
[1750205357115,0.49964,104750.0,104740.0,0.36611298]
[1750205357334,0.49964,104750.0,104740.0,0.36611307]
[1750205357604,0.49964,104750.0,104740.0,0.19819692]
[1750205357805,0.49964,104750.0,104740.0,0.20774437]
[1750205358519,0.49964,104750.0,104740.0,0.19819692]
[1750205358671,0.50918581,104750.0,104740.0,0.19819692]
[1750205358903,0.49964,104750.0,104740.0,0.19819692]
[1750205359116,0.50918581,104750.0,104740.0,0.19819692]
[1750205359533,0.49964,104750.0,104740.0,0.19819692]
[1750205359776,0.49964,104750.0,104740.0,0.20774427]
[1750205359991,0.49964,104750.0,104740.0,0.39869328]
[1750205360209,0.49964,104750.0,104740.0,0.40824045]
[1750205360424,0.49964,104750.0,104740.0,0.39869328]
[1750205360877,0.34,104750.0,104740.0,0.42733434]
[1750205361105,0.02863231,104770.0,104750.0,0.21002021]
[1750205361106,0.00954389,104770.0,104750.0,0.21002021]
[1750205361344,0.51848796,104770.0,104760.0,0.20388176]
[1750205361569,0.16894389,104770.0,104760.0,0.20388176]
[1750205361807,0.50894389,104770.0,104760.0,0.20388176]
[1750205362036,0.51848787,104770.0,104760.0,0.20388176]
[1750205362754,0.53003194,104770.0,104760.0,0.20388176]
[1750205363213,0.5405762,104770.0,104760.0,0.20388176]
[1750205363447,0.54057611,104770.0,104760.0,0.20388176]
[1750205363670,0.54912055,104770.0,104760.0,0.16144176]
[1750205363907,0.54912192,104770.0,104760.0,0.09624176]
[1750205364126,0.55012192,104770.0,104760.0,0.09624176]
[1750205364336,0.54057721,104770.0,104760.0,0.09624176]
[1750205364778,0.55012192,104770.0,104760.0,0.09624176]
[1750205364987,0.73147218,104770.0,104760.0,0.09624176]
[1750205365472,0.7307732,104770.0,104760.0,0.09624176]
[1750205365715,0.7307732,104770.0,104740.0,0.10521495]
[1750205365716,0.0190918,104750.0,104740.0,0.10521495]
[1750205365917,0.5184118,104750.0,104740.0,0.20145671]
[1750205366136,0.53750423,104750.0,104740.0,0.12781671]
[1750205366346,0.53750414,104750.0,104740.0,0.12781671]
[1750205366744,0.54705058,104750.0,104740.0,0.12781671]
[1750205366949,0.53750414,104750.0,104740.0,0.12981671]
[1750205367151,0.53750414,104750.0,104740.0,0.13181671]
[1750205367360,0.61145121,104750.0,104740.0,0.10071671]
[1750205367569,0.53750468,104750.0,104740.0,0.12121238]
[1750205367964,0.5184117,104750.0,104740.0,0.12121238]
[1750205370773,0.49932,104750.0,104740.0,0.12121238]
[1750205370978,0.34,104750.0,104740.0,0.40280263]
[1750205371189,0.49968,104750.0,104740.0,0.40280263]
[1750205373158,0.34,104750.0,104740.0,0.40280263]
[1750205375355,0.34,104750.0,104740.0,0.40116263]
[1750205376185,0.8302,104750.0,104740.0,0.40116263]
[1750205379771,0.34,104750.0,104740.0,0.38066696]
[1750205379987,0.17848805,104770.0,104750.0,0.21956205]
[1750205380203,0.17848805,104770.0,104750.0,0.29170795]
[1750205380204,0.34,104760.0,104750.0,0.29170795]
[1750205380419,0.34,104760.0,104750.0,0.38794971]
[1750205382352,0.34974041,104760.0,104750.0,0.38794971]
[1750205382572,0.34974041,104760.0,104750.0,0.44679426]
[1750205382986,0.00974041,104760.0,104750.0,0.44679426]
[1750205383387,0.17002398,104770.0,104760.0,0.031]
[1750205383388,0.17856805,104770.0,104760.0,0.031]
[1750205383593,0.17856805,104770.0,104760.0,0.12724176]
[1750205384358,0.16902398,104770.0,104760.0,0.12724176]
[1750205384565,0.16902398,104770.0,104760.0,0.17272577]
[1750205384773,0.17102398,104770.0,104760.0,0.17272577]
[1750205385656,0.18056815,104770.0,104760.0,0.17272577]
[1750205385863,0.18156815,104770.0,104760.0,0.17272577]
[1750205386076,0.19138038,104770.0,104760.0,0.17272577]
[1750205386288,0.52183621,104770.0,104760.0,0.17272577]
[1750205386505,0.53138028,104770.0,104760.0,0.17272577]
[1750205386936,0.54092454,104770.0,104760.0,0.17272577]
[1750205387362,0.53138028,104770.0,104760.0,0.17272577]
[1750205388663,0.52183621,104770.0,104760.0,0.17272577]
[1750205388878,0.52147612,104770.0,104760.0,0.12724176]
[1750205389062,0.5310201,104770.0,104760.0,0.12724176]
[1750205389335,0.52147612,104770.0,104760.0,0.12724176]
[1750205389765,0.53102029,104770.0,104760.0,0.12724176]
[1750205389977,0.53102029,104770.0,104760.0,0.09624176]
[1750205390863,0.54056464,104770.0,104760.0,0.09624176]
[1750205391082,0.55010917,104770.0,104760.0,0.09624176]
[1750205391284,0.55010908,104770.0,104760.0,0.09624176]
[1750205391720,0.53102029,104770.0,104760.0,0.09624176]
[1750205392362,0.53102029,104770.0,104760.0,0.12644176]
[1750205393004,0.17820806,104770.0,104760.0,0.09624176]
[1750205393254,0.18775241,104770.0,104760.0,0.09624176]
[1750205394330,0.19785447,104770.0,104760.0,0.09624176]
[1750205394552,0.207399,104770.0,104760.0,0.09624176]
[1750205394759,0.20739891,104770.0,104760.0,0.09624176]
[1750205394970,0.54739891,104770.0,104760.0,0.09624176]
[1750205395407,0.53785447,104770.0,104760.0,0.09624176]
[1750205396083,0.52831012,104770.0,104760.0,0.09624176]
[1750205396513,0.52831012,104770.0,104760.0,0.13905875]
[1750205396730,0.52830993,104770.0,104760.0,0.16965875]
[1750205397613,0.52830993,104770.0,104760.0,0.12684176]
[1750205397828,0.53785419,104770.0,104760.0,0.12684176]
[1750205398720,0.35010206,104770.0,104760.0,0.37929037]
[1750205398943,0.0313,104790.0,104770.0,0.28391854]
[1750205399164,0.22869205,104800.0,104780.0,0.37060454]
[1750205399380,0.34,104790.0,104780.0,0.46958695]
[1750205399611,0.49904,104790.0,104780.0,0.41312463]
[1750205399839,0.49904,104790.0,104780.0,0.42266816]
[1750205400058,0.50858216,104790.0,104780.0,0.20316176]
[1750205400276,0.51851015,104790.0,104780.0,0.17026176]
[1750205400496,0.51898518,104790.0,104780.0,0.17026176]
[1750205400710,0.50944302,104790.0,104780.0,0.40068168]
[1750205400973,0.50944302,104790.0,104780.0,0.42572111]
[1750205401192,0.50944302,104790.0,104780.0,0.4257212]
[1750205401845,0.34047503,104790.0,104780.0,0.45435133]
[1750205402526,0.00047503,104790.0,104780.0,0.45435133]
[1750205402755,0.34047503,104790.0,104780.0,0.45435133]
[1750205402977,0.34047503,104790.0,104780.0,0.43885561]
[1750205403199,0.34047503,104790.0,104780.0,0.42931181]
[1750205403415,0.34047503,104790.0,104780.0,0.37724856]
[1750205403649,0.34047503,104790.0,104780.0,0.43861497]
[1750205403863,0.35031105,104790.0,104780.0,0.43861497]
[1750205404079,0.29820241,104800.0,104780.0,0.43861497]
[1750205404294,0.30774375,104800.0,104780.0,0.49202186]
[1750205404488,0.29820241,104800.0,104780.0,0.50156502]
[1750205404717,0.30774393,104800.0,104780.0,0.48247825]
[1750205404907,0.29820241,104800.0,104780.0,0.49202141]
[1750205405181,0.29820241,104800.0,104780.0,0.22069181]
[1750205405393,0.02862758,104790.0,104780.0,0.13852176]
[1750205405605,0.09212758,104790.0,104780.0,0.13852176]
[1750205406282,0.43212758,104790.0,104780.0,0.13852176]
[1750205406869,0.43217504,104790.0,104780.0,0.13852176]
[1750205407122,0.44171793,104790.0,104780.0,0.13852176]
[1750205407312,0.42263224,104790.0,104780.0,0.13852176]
[1750205407541,0.44171775,104790.0,104780.0,0.13852176]
[1750205407756,0.45148683,104790.0,104780.0,0.13852176]
[1750205408588,0.40904394,104790.0,104780.0,0.13852176]
[1750205408847,0.41858674,104790.0,104780.0,0.13852176]
[1750205409569,0.60944464,104790.0,104780.0,0.13852176]
[1750205409876,0.59990239,104790.0,104780.0,0.13852176]
[1750205410052,0.59990239,104790.0,104780.0,0.13952176]
[1750205410852,0.59990239,104790.0,104780.0,0.14052176]
[1750205411035,0.40904449,104790.0,104780.0,0.14052176]
[1750205411230,0.41858738,104790.0,104780.0,0.14052176]
[1750205411439,0.60944528,104790.0,104780.0,0.14052176]
[1750205412903,0.57884528,104790.0,104780.0,0.14052176]
[1750205413107,0.57884528,104790.0,104780.0,0.09824176]
[1750205413280,0.65863491,104790.0,104780.0,0.09824176]
[1750205413482,0.62116013,104790.0,104780.0,0.09824176]
[1750205414228,0.43030223,104790.0,104780.0,0.09824176]
[1750205414393,0.43030187,104790.0,104780.0,0.09824176]
[1750205415719,0.39940187,104790.0,104780.0,0.09824176]
[1750205416678,0.40894403,104790.0,104780.0,0.09824176]
[1750205417316,0.37844403,104790.0,104780.0,0.09824176]
[1750205417739,0.38798683,104790.0,104780.0,0.09824176]
[1750205418144,0.37844403,104790.0,104780.0,0.09824176]
[1750205418346,0.36890132,104790.0,104780.0,0.09824176]
[1750205419029,0.38798692,104790.0,104780.0,0.09824176]
[1750205419240,0.37844403,104790.0,104780.0,0.09824176]
[1750205420116,0.38798692,104790.0,104780.0,0.09824176]
[1750205420534,0.37844403,104790.0,104780.0,0.09824176]
[1750205420753,0.63460193,104790.0,104780.0,0.09824176]
[1750205421659,0.60260193,104790.0,104780.0,0.09824176]
[1750205421872,0.61621715,104790.0,104780.0,0.002]
[1750205422514,0.61621715,104790.0,104780.0,0.001]
[1750205422941,0.26640061,104790.0,104780.0,0.001]
[1750205423587,0.26640061,104790.0,104770.0,0.07418]
[1750205423798,0.19657274,104780.0,104770.0,0.17042176]
[1750205424268,0.20611636,104780.0,104770.0,0.17042176]
[1750205425437,0.20611709,104780.0,104770.0,0.17042176]
[1750205425657,0.20611709,104780.0,104770.0,0.17142176]
[1750205426312,0.19657338,104780.0,104770.0,0.17142176]
[1750205426731,0.19657338,104780.0,104770.0,0.17242176]
[1750205427478,0.7274495,104780.0,104770.0,0.09824176]
[1750205427661,0.71790643,104780.0,104770.0,0.09824176]
[1750205429634,0.73161974,104780.0,104770.0,0.09824176]
[1750205429862,0.76161974,104780.0,104770.0,0.09824176]
[1750205430521,0.73161974,104780.0,104770.0,0.09824176]
[1750205431715,0.69881974,104780.0,104770.0,0.09824176]
[1750205437958,0.73011974,104780.0,104770.0,0.09824176]
[1750205438154,0.75302338,104780.0,104770.0,0.09824176]
[1750205438362,0.72172338,104780.0,104770.0,0.09824176]
[1750205440942,0.71217976,104780.0,104770.0,0.09824176]
[1750205442262,0.36290364,104780.0,104770.0,0.09824176]
[1750205442483,0.53983061,104780.0,104770.0,0.1804385]
[1750205442711,0.38199231,104780.0,104770.0,0.1804385]
[1750205442925,0.52643004,104780.0,104770.0,0.1804385]
[1750205443151,0.18643004,104780.0,104770.0,0.1804385]
[1750205443367,0.18479004,104780.0,104770.0,0.1804385]
[1750205443807,0.18478995,104780.0,104770.0,0.1804385]
[1750205444044,0.19433366,104780.0,104770.0,0.1804385]
[1750205444270,0.18478995,104780.0,104770.0,0.1804385]
[1750205444498,0.19433366,104780.0,104770.0,0.1804385]
[1750205444955,0.06926097,104790.0,104780.0,0.0637]
[1750205445185,0.02727012,104790.0,104780.0,0.19831932]
[1750205445405,0.18518994,104790.0,104780.0,0.19831932]
[1750205445630,0.19473219,104790.0,104780.0,0.19831932]
[1750205446348,0.03681219,104790.0,104780.0,0.19831932]
[1750205446572,0.1947321,104790.0,104780.0,0.19831932]
[1750205446801,0.04635435,104790.0,104780.0,0.23999932]
[1750205447029,0.20427435,104790.0,104780.0,0.23999932]
[1750205447498,0.19473247,104790.0,104780.0,0.23999932]
[1750205447734,0.01772787,104790.0,104780.0,0.43087544]
[1750205447978,0.01772787,104790.0,104780.0,0.46904937]
[1750205448211,0.15788,104800.0,104790.0,0.20039947]
[1750205448433,0.15788,104800.0,104790.0,0.1654051]
[1750205448652,0.15788,104800.0,104790.0,0.2382479]
[1750205448877,0.15788,104800.0,104790.0,0.21916221]
[1750205449156,0.16742116,104800.0,104790.0,0.21916221]
[1750205449383,0.18650393,104800.0,104790.0,0.15954176]
[1750205449612,0.37734472,104800.0,104790.0,0.09624176]
[1750205450064,0.39546661,104800.0,104790.0,0.12724176]
[1750205450287,0.38592509,104800.0,104790.0,0.12724176]
[1750205451836,0.1950854,104800.0,104790.0,0.12724176]
[1750205452930,0.39546707,104800.0,104790.0,0.12724176]
[1750205453385,0.20462738,104800.0,104790.0,0.12724176]
[1750205453879,0.1950854,104800.0,104790.0,0.15734176]
[1750205454288,0.20462665,104800.0,104790.0,0.15734176]
[1750205454533,0.18554314,104800.0,104790.0,0.17914867]
[1750205455015,0.53508448,104800.0,104790.0,0.17914867]
[1750205455931,0.544626,104800.0,104790.0,0.15734176]
[1750205456149,0.55416762,104800.0,104790.0,0.15734176]
[1750205456850,0.56370951,104800.0,104790.0,0.15734176]
[1750205457524,0.56371024,104800.0,104790.0,0.15734176]
[1750205457745,0.5541689,104800.0,104790.0,0.12724176]
[1750205458144,0.54462683,104800.0,104790.0,0.12724176]
[1750205458392,0.54462683,104800.0,104790.0,0.15754176]
[1750205458626,0.7450085,104800.0,104790.0,0.15754176]
[1750205458854,0.54462683,104800.0,104790.0,0.12724176]
[1750205459070,0.55416881,104800.0,104790.0,0.15754176]
[1750205459289,0.73546698,104800.0,104790.0,0.15754176]
[1750205460221,0.72592536,104800.0,104790.0,0.09624176]
[1750205460442,0.71638356,104800.0,104790.0,0.09624176]
[1750205461340,0.70684158,104800.0,104790.0,0.09624176]
[1750205461800,0.54040079,104790.0,104780.0,0.0303]
[1750205462031,0.54994341,104790.0,104780.0,0.09624176]
[1750205462722,0.54994341,104790.0,104780.0,0.12834176]
[1750205462950,0.54994341,104790.0,104780.0,0.15964176]
[1750205463444,0.54994341,104790.0,104780.0,0.12834176]
[1750205463701,0.52654694,104790.0,104780.0,0.18130994]
[1750205463937,0.51700441,104790.0,104780.0,0.18130994]
[1750205464156,0.52654694,104790.0,104780.0,0.18230994]
[1750205464384,0.52654694,104790.0,104780.0,0.18330994]
[1750205464637,0.49792,104790.0,104780.0,0.18330994]
[1750205464860,0.50746216,104790.0,104780.0,0.18330994]
[1750205465080,0.51700441,104790.0,104780.0,0.18330994]
[1750205465307,0.50746216,104790.0,104780.0,0.18330994]
[1750205465980,0.5170045,104790.0,104780.0,0.18330994]
[1750205466187,0.50746216,104790.0,104780.0,0.18330994]
[1750205466422,0.5170045,104790.0,104780.0,0.18330994]
[1750205466633,0.50746216,104790.0,104780.0,0.18330994]
[1750205466866,0.5170045,104790.0,104780.0,0.18330994]
[1750205467082,0.5170045,104790.0,104780.0,0.16304176]
[1750205467964,0.52654703,104790.0,104780.0,0.16304176]
[1750205468390,0.53608974,104790.0,104780.0,0.16304176]
[1750205468867,0.52654703,104790.0,104780.0,0.16304176]
[1750205469294,0.5170045,104790.0,104780.0,0.16304176]
[1750205470591,0.52654703,104790.0,104780.0,0.16304176]
[1750205470803,0.50746216,104790.0,104780.0,0.2054626]
[1750205471024,0.51700441,104790.0,104780.0,0.16304176]
[1750205471242,0.53608974,104790.0,104780.0,0.16304176]
[1750205471454,0.54563263,104790.0,104780.0,0.16304176]
[1750205471885,0.71740612,104790.0,104780.0,0.16304176]
[1750205472106,0.71740612,104790.0,104780.0,0.13034176]
[1750205473387,0.71740612,104790.0,104780.0,0.09824176]
[1750205474466,0.70786359,104790.0,104780.0,0.09824176]
[1750205475775,0.69832079,104790.0,104780.0,0.09824176]
[1750205476490,0.69832079,104790.0,104780.0,0.002]
[1750205476491,0.54040079,104790.0,104780.0,0.002]
[1750205476708,0.81112843,104790.0,104780.0,0.002]
[1750205476929,0.82951806,104790.0,104780.0,0.002]
[1750205477149,0.81112843,104790.0,104780.0,0.002]
[1750205477594,0.03817721,104770.0,104760.0,0.10356]
[1750205477809,0.1863525,104770.0,104760.0,0.20027679]
[1750205478023,0.1863525,104770.0,104760.0,0.15871679]
[1750205478024,0.19589712,104770.0,104760.0,0.15871679]
[1750205478245,0.1863525,104770.0,104760.0,0.20027679]
[1750205478684,0.19589712,104770.0,104760.0,0.20027679]
[1750205478917,0.17680806,104770.0,104760.0,0.20027679]
[1750205479137,0.18635241,104770.0,104760.0,0.20027679]
[1750205479352,0.19589703,104770.0,104760.0,0.20027679]
[1750205479563,0.19589694,104770.0,104760.0,0.20027679]
[1750205479784,0.18635241,104770.0,104760.0,0.20027679]
[1750205480016,0.18635241,104770.0,104760.0,0.20127679]
[1750205480261,0.19589694,104770.0,104760.0,0.20227679]
[1750205480486,0.19589685,104770.0,104760.0,0.20227679]
[1750205480705,0.7077033,104770.0,104760.0,0.13041679]
[1750205480920,0.7077033,104770.0,104760.0,0.09871679]
[1750205481367,0.7077033,104770.0,104760.0,0.13081679]
[1750205481804,0.7077033,104770.0,104760.0,0.16341679]
[1750205485607,0.72885886,104770.0,104760.0,0.00247503]
[1750205486500,0.72885886,104770.0,104760.0,0.00147503]
[1750205486726,0.72885886,104770.0,104760.0,0.00047503]
[1750205486951,0.69815886,104770.0,104760.0,0.00047503]
[1750205489742,0.76065886,104770.0,104760.0,0.00047503]
[1750205490843,0.72925886,104770.0,104760.0,0.00047503]
[1750205491060,0.69815886,104770.0,104760.0,0.00047503]
[1750205492937,0.69807886,104770.0,104760.0,0.00047503]
[1750205494112,0.68853433,104770.0,104760.0,0.00047503]
[1750205494561,0.74993433,104770.0,104760.0,0.00047503]
[1750205495677,0.71873433,104770.0,104760.0,0.00047503]
[1750205497005,0.68853433,104770.0,104760.0,0.00047503]
[1750205497984,0.53089433,104770.0,104760.0,0.00047503]
[1750205498206,0.69807886,104770.0,104760.0,0.06237503]
[1750205498625,0.69807886,104770.0,104760.0,0.06861253]
[1750205500180,0.68853433,104770.0,104760.0,0.03157503]
[1750205500421,0.68853433,104770.0,104760.0,0.00047503]
[1750205504364,0.71142142,104770.0,104760.0,0.00047503]
[1750205504988,0.71142141,104770.0,104760.0,0.00047503]
[1750205505230,0.25954544,104760.0,104750.0,0.0607]
[1750205505454,0.25954544,104760.0,104740.0,0.033]
[1750205505455,0.54048787,104750.0,104740.0,0.033]
[1750205505665,0.70767413,104750.0,104740.0,0.12924176]
[1750205506509,0.70767413,104750.0,104740.0,0.09624176]
[1750205507198,0.70767413,104750.0,104740.0,0.12734176]
[1750205508439,0.73056995,104750.0,104740.0,0.002]
[1750205508659,0.79106995,104750.0,104740.0,0.002]
[1750205509512,0.79106995,104750.0,104740.0,0.001]
[1750205510355,5.51864695,104750.0,104740.0,0.001]
[1750205510564,0.20049627,104740.0,104730.0,0.0301]
[1750205510820,0.20049627,104740.0,104730.0,0.12634176]
[1750205511041,0.55006359,104730.0,104720.0,0.10376]
[1750205511245,0.7172514,104730.0,104720.0,0.20000176]
[1750205511452,0.55905584,104730.0,104720.0,0.20000176]
[1750205511667,0.54950703,104730.0,104720.0,0.20000176]
[1750205511885,0.34,104730.0,104720.0,0.24960658]
[1750205512095,0.3360592,104750.0,104720.0,0.24005731]
[1750205512312,0.52699055,104750.0,104740.0,0.0637]
[1750205512522,0.54608316,104750.0,104740.0,0.0637]
[1750205512727,0.55562906,104750.0,104740.0,0.0637]
[1750205512954,0.55562849,104750.0,104740.0,0.0637]
[1750205513164,0.58747907,104750.0,104740.0,0.0637]
[1750205513386,0.726067,104750.0,104740.0,0.0637]
[1750205516157,0.55689718,104750.0,104740.0,0.0637]
[1750205516370,0.3900078,104750.0,104740.0,0.0637]
[1750205518391,0.3900478,104750.0,104740.0,0.0637]
[1750205518573,0.38050136,104750.0,104740.0,0.0637]
[1750205519035,0.22278136,104750.0,104740.0,0.0637]
[1750205519249,0.38050136,104750.0,104740.0,0.0637]
[1750205519687,0.38046136,104750.0,104740.0,0.0637]
[1750205520113,0.20858238,104750.0,104740.0,0.17593594]
[1750205520335,0.21812855,104750.0,104740.0,0.17593594]
[1750205520826,0.00954581,104750.0,104740.0,0.17593594]
[1750205521026,0.16730581,104750.0,104740.0,0.17523594]
[1750205521874,0.17685171,104750.0,104740.0,0.17523594]
[1750205522085,0.16730581,104750.0,104740.0,0.17523594]
[1750205522346,0.0095459,104750.0,104740.0,0.17443594]
[1750205522564,0.00954581,104750.0,104740.0,0.17443594]
[1750205522993,0.00954499,104760.0,104750.0,0.0622]
[1750205523221,0.01909016,104760.0,104750.0,0.19498025]
[1750205523440,0.16722499,104760.0,104750.0,0.19498025]
[1750205523675,0.17677016,104760.0,104750.0,0.19498025]
[1750205523898,0.16722499,104760.0,104750.0,0.19498025]
[1750205524105,0.17677007,104760.0,104750.0,0.19498025]
[1750205524323,0.17777007,104760.0,104750.0,0.19498025]
[1750205524566,0.15868,104760.0,104750.0,0.19498025]
[1750205524777,0.17777006,104760.0,104750.0,0.19498025]
[1750205525203,0.001,104760.0,104750.0,0.19498025]
[1750205525422,0.17772969,104760.0,104750.0,0.19498025]
[1750205525651,0.15964,104760.0,104750.0,0.20452678]
[1750205526327,0.15964,104760.0,104750.0,0.19498025]
[1750205526541,0.15764,104760.0,104750.0,0.19498025]
[1750205526749,0.15764,104760.0,104750.0,0.19698025]
[1750205526956,0.15764,104760.0,104750.0,0.19798025]
[1750205527593,0.17672997,104760.0,104750.0,0.19798025]
[1750205527813,0.16718489,104760.0,104750.0,0.19798025]
[1750205528251,0.17672997,104760.0,104750.0,0.19798025]
[1750205528477,0.19582058,104760.0,104750.0,0.16144176]
[1750205528706,0.19582049,104760.0,104750.0,0.16144176]
[1750205528922,0.18627514,104760.0,104750.0,0.16144176]
[1750205529204,0.17672997,104760.0,104750.0,0.16144176]
[1750205529443,0.17672997,104760.0,104750.0,0.20623516]
[1750205529685,0.01908997,104760.0,104750.0,0.20623516]
[1750205529930,0.16718489,104760.0,104750.0,0.20623516]
[1750205530174,0.17672997,104760.0,104750.0,0.20623516]
[1750205530914,0.18627523,104760.0,104750.0,0.20623516]
[1750205531385,0.17672997,104760.0,104750.0,0.20623516]
[1750205531839,0.18627514,104760.0,104750.0,0.20623516]
[1750205532263,0.52627514,104760.0,104750.0,0.20623516]
[1750205533418,0.50718489,104760.0,104750.0,0.20623516]
[1750205533638,0.51672997,104760.0,104750.0,0.20623516]
[1750205534053,0.51673006,104760.0,104750.0,0.20623516]
[1750205534466,0.00954517,104760.0,104750.0,0.20623516]
[1750205534725,0.01908997,104760.0,104750.0,0.20623516]
[1750205534974,0.00954489,104760.0,104750.0,0.20623516]
[1750205535652,0.00954407,104770.0,104760.0,0.0627]
[1750205535878,0.22481998,104770.0,104760.0,0.19966295]
[1750205536132,0.19581739,104770.0,104760.0,0.19966295]
[1750205537078,0.1962921,104770.0,104760.0,0.19966295]
[1750205537314,0.18674748,104770.0,104760.0,0.19966295]
[1750205538699,0.1962921,104770.0,104760.0,0.19966295]
[1750205538923,0.1962921,104770.0,104760.0,0.15894176]
[1750205539378,0.18674748,104770.0,104760.0,0.15894176]
[1750205540098,0.22590816,104770.0,104760.0,0.15894176]
[1750205540297,0.21636372,104770.0,104760.0,0.15894176]
[1750205541375,0.21636363,104770.0,104760.0,0.15894176]
[1750205541586,0.21636363,104770.0,104760.0,0.17998796]
[1750205542414,0.22590798,104770.0,104760.0,0.17998796]
[1750205543295,0.23545251,104770.0,104760.0,0.17998796]
[1750205543506,0.01908842,104770.0,104760.0,0.17998796]
[1750205543745,0.40832795,104770.0,104760.0,0.17998796]
[1750205543998,0.35908824,104770.0,104760.0,0.17998796]
[1750205544646,0.51672824,104770.0,104760.0,0.17998796]
[1750205544864,0.52627259,104770.0,104760.0,0.17998796]
[1750205545501,0.53581712,104770.0,104760.0,0.15894176]
[1750205546135,0.52627259,104770.0,104760.0,0.15894176]
[1750205548433,0.56510602,104770.0,104760.0,0.15894176]
[1750205549421,0.55556167,104770.0,104760.0,0.15894176]
[1750205550105,0.56510602,104770.0,104760.0,0.15894176]
[1750205550305,0.56510593,104770.0,104760.0,0.20093271]
[1750205550560,0.57465037,104770.0,104760.0,0.20093271]
[1750205551002,0.56510593,104770.0,104760.0,0.20093271]
[1750205551997,0.57465037,104770.0,104760.0,0.20093271]
[1750205552516,0.56510593,104770.0,104760.0,0.20093271]
[1750205552990,0.55556167,104770.0,104760.0,0.20093271]
[1750205553414,0.56510593,104770.0,104760.0,0.20093271]
[1750205554909,0.57465037,104770.0,104760.0,0.20093271]
[1750205555598,0.8308447,104770.0,104760.0,0.09624176]
[1750205555814,0.81175673,104770.0,104760.0,0.09624176]
[1750205556034,0.5885624,104770.0,104760.0,0.09624176]
[1750205556254,0.55556149,104770.0,104760.0,0.12794176]
[1750205556481,0.39792149,104770.0,104760.0,0.12794176]
[1750205556731,0.54597732,104770.0,104760.0,0.19789284]
[1750205556957,0.55552149,104770.0,104760.0,0.19789284]
[1750205557175,0.53643343,104770.0,104760.0,0.19789284]
[1750205557402,0.54597732,104770.0,104760.0,0.19789284]
[1750205557851,0.55552139,104770.0,104760.0,0.19789284]
[1750205558282,0.5555213,104770.0,104760.0,0.19789284]
[1750205558913,0.3979213,104770.0,104760.0,0.19789284]
[1750205559145,0.5555213,104770.0,104760.0,0.19789284]
[1750205559359,0.54597732,104770.0,104760.0,0.19789284]
[1750205559804,0.55552139,104770.0,104760.0,0.19789284]
[1750205560037,0.39792139,104770.0,104760.0,0.19789284]
[1750205560249,0.55552139,104770.0,104760.0,0.19789284]
[1750205560546,0.39792139,104770.0,104760.0,0.19789284]
[1750205560728,0.55552139,104770.0,104760.0,0.19789284]
[1750205560953,0.54597732,104770.0,104760.0,0.19789284]
[1750205561602,0.38837732,104770.0,104760.0,0.19789284]
[1750205561841,0.54597732,104770.0,104760.0,0.19789284]
[1750205562270,0.55552139,104770.0,104760.0,0.19789284]
[1750205563855,0.56506556,104770.0,104760.0,0.19789284]
[1750205564065,0.57461,104770.0,104760.0,0.15994176]
[1750205564281,0.56506556,104770.0,104760.0,0.15994176]
[1750205564516,0.57460991,104770.0,104760.0,0.15994176]
[1750205565126,0.56506556,104770.0,104760.0,0.15994176]
[1750205565958,0.57460982,104770.0,104760.0,0.15994176]
[1750205569079,0.58415417,104770.0,104760.0,0.15994176]
[1750205569522,0.57460982,104770.0,104760.0,0.15994176]
[1750205569733,0.55552139,104770.0,104760.0,0.15994176]
[1750205569948,0.56506565,104770.0,104760.0,0.15994176]
[1750205572882,0.57461,104770.0,104760.0,0.15994176]
[1750205574302,0.56506565,104770.0,104760.0,0.15994176]
[1750205574544,0.57461009,104770.0,104760.0,0.15994176]
[1750205574947,0.56506565,104770.0,104760.0,0.15994176]
[1750205575389,0.57461009,104770.0,104760.0,0.15994176]
[1750205575807,0.56506565,104770.0,104760.0,0.15994176]
[1750205576647,0.57461018,104770.0,104760.0,0.15994176]
[1750205576869,0.56506565,104770.0,104760.0,0.15994176]
[1750205577284,0.57461009,104770.0,104760.0,0.15994176]
[1750205577707,0.57461009,104770.0,104760.0,0.12794176]
[1750205578958,0.5841548,104770.0,104760.0,0.12794176]
[1750205579190,0.55000335,104760.0,104750.0,0.0333]
[1750205579409,0.03818413,104750.0,104740.0,0.20220176]
[1750205579658,0.38667573,104750.0,104740.0,0.09624176]
[1750205579873,0.37712974,104750.0,104740.0,0.09624176]
[1750205580086,0.39948357,104750.0,104740.0,0.09624176]
[1750205580724,0.73948357,104750.0,104740.0,0.09624176]
[1750205580976,0.76243731,104750.0,104740.0,0.09624176]
[1750205581186,0.785354,104750.0,104740.0,0.09624176]
[1750205581417,0.77580747,104750.0,104730.0,0.04136]
[1750205581685,0.0286416,104740.0,104730.0,0.13760176]
[1750205581932,0.0286416,104740.0,104730.0,0.09624176]
[1750205582780,4.727577,104740.0,104730.0,0.09624176]
[1750205583029,0.20049636,104740.0,104730.0,0.09624176]
[1750205583560,0.20049636,104740.0,104730.0,0.09724176]
[1750205584027,0.35805636,104740.0,104730.0,0.09724176]
[1750205584270,0.35805636,104740.0,104730.0,0.09924176]
[1750205585185,0.69805636,104740.0,104730.0,0.09924176]
[1750205586325,0.35909353,104740.0,104730.0,0.16184176]
[1750205586529,0.52620052,104740.0,104730.0,0.16184176]
[1750205587405,0.52620034,104740.0,104730.0,0.16184176]
[1750205587643,0.53574733,104740.0,104730.0,0.16184176]
[1750205587847,0.5452945,104740.0,104730.0,0.20412479]
[1750205588065,0.53574733,104740.0,104730.0,0.20412479]
[1750205588510,0.53574733,104740.0,104730.0,0.16184176]
[1750205588723,0.5452945,104740.0,104730.0,0.16184176]
[1750205589401,0.53574733,104740.0,104730.0,0.16184176]
[1750205589633,0.5452945,104740.0,104730.0,0.16184176]
[1750205589886,0.54529441,104740.0,104730.0,0.16184176]
[1750205590079,0.52620034,104740.0,104730.0,0.16184176]
[1750205590300,0.52620034,104740.0,104730.0,0.20412514]
[1750205590737,0.53574742,104740.0,104730.0,0.20412514]
[1750205590960,0.52620034,104740.0,104730.0,0.20412514]